fUSD/lending_fUSD_20250611
["ID","MTS","AMOUNT","RATE_DAILY","PERIOD"]
[365384317,1749639039117,-319641.18422434,0.000196,2]
[365384319,1749639039126,-271.9607,0.000196,2]
[365384320,1749639039135,-3075.06089387,0.00019626,2]
[365384322,1749639039145,-155.27536798,0.00019695,2]
[365384324,1749639039154,-15479.01601315,0.000197,2]
[365384326,1749639039163,-3075.06089387,0.00019717,2]
[365384328,1749639039172,-329.183,0.000198,2]
[365384330,1749639039181,-5562.0,0.000198,3]
[365384332,1749639039192,-3075.06089387,0.00019809,2]
[365384334,1749639039201,-500.0,0.0001984,2]
[365384336,1749639039210,-412.0,0.00019876,2]
[365384338,1749639039219,-856.2995,0.00019896,2]
[365384340,1749639039228,-155.27536798,0.000199,2]
[365384342,1749639039238,-3075.06089387,0.000199,2]
[365384344,1749639039247,-150.64,0.00019958,2]
[365384346,1749639039257,-502.12636834,0.00019973,2]
[365384348,1749639039266,-508.31958297,0.00019973,2]
[365384350,1749639039275,-500.99607924,0.00019973,2]
[365384352,1749639039284,-556.54554557,0.00019973,2]
[365384354,1749639039293,-500.0,0.00019973,2]
[365384356,1749639039303,-500.0,0.00019973,2]
[365384358,1749639039312,-501.11821911,0.00019973,2]
[365384360,1749639039321,-500.0,0.00019973,2]
[365384362,1749639039330,-500.0,0.00019973,2]
[365384364,1749639039339,-500.0,0.00019973,2]
[365384366,1749639039348,-500.0,0.00019973,2]
[365384368,1749639039357,-500.0,0.00019973,2]
[365384370,1749639039366,-296.68480323,0.00019973,2]
[365384372,1749639039375,-500.3873313,0.00019973,2]
[365384374,1749639039384,-500.0,0.00019973,2]
[365384376,1749639039393,-500.0,0.00019973,2]
[365384378,1749639039403,-500.0,0.00019973,2]
[365384380,1749639039411,-500.0,0.00019973,2]
[365384382,1749639039420,-502.27276169,0.00019973,2]
[365384384,1749639039429,-379.93956716,0.00019973,2]
[365384386,1749639039438,-500.0,0.00019973,2]
[365384388,1749639039447,-500.0,0.00019981,2]
[365384390,1749639039456,-150.0,0.00019981,2]
[365384392,1749639039465,-913.4270757,0.00019986,2]
[365384394,1749639039474,-748.9787312,0.00019986,2]
[365384396,1749639039482,-584.5303868,0.00019986,2]
[365384397,1749639039491,-420.0820423,0.00019986,2]
[365384400,1749639039500,-255.6336979,0.00019986,2]
[365384402,1749639039519,-7778.6668193,0.00019986,2]
[365384405,1749639039529,-6378.2387891,0.00019986,2]
[365384407,1749639039539,-4977.8107588,0.00019986,2]
[365384409,1749639039548,-3577.3827286,0.00019986,2]
[365384411,1749639039557,-2176.9546983,0.00019986,2]
[365384413,1749639039567,-227.5746513,0.00019986,2]
[365384415,1749639039576,-227.5746513,0.00019986,2]
[365384417,1749639039586,-227.5746513,0.00019986,2]
[365384419,1749639039595,-227.5746513,0.00019986,2]
[365384421,1749639039604,-227.5746513,0.00019986,2]
[365384423,1749639039613,-500.0,0.00019989,2]
[365384425,1749639039623,-500.0,0.00019989,2]
[365384427,1749639039634,-502.6,0.00019989,2]
[365384429,1749639039644,-500.0,0.00019989,2]
[365384431,1749639039654,-150.0,0.00019989,2]
[365384433,1749639039663,-1050.07088912,0.0001999,2]
[365384435,1749639039672,-150.47,0.0001999,2]
[365384437,1749639039681,-150.47,0.0001999,2]
[365384439,1749639039694,-150.47,0.0001999,2]
[365384441,1749639039703,-150.47,0.0001999,2]
[365384443,1749639039712,-150.47,0.0001999,2]
[365384445,1749639039721,-150.47,0.0001999,2]
[365384447,1749639039731,-150.47,0.0001999,2]
[365384449,1749639039742,-150.47,0.0001999,2]
[365384451,1749639039751,-150.47,0.0001999,2]
[365384453,1749639039762,-150.47,0.0001999,2]
[365384455,1749639039771,-150.47,0.0001999,2]
[365384457,1749639039780,-150.47,0.0001999,2]
[365384459,1749639039790,-5000.0,0.0001999,13]
[365384461,1749639039799,-5000.0,0.0001999,14]
[365384463,1749639039808,-5000.0,0.0001999,5]
[365384465,1749639039819,-4021.11572342,0.0001999,2]
[365384467,1749639039828,-1050.07088912,0.0001999,2]
[365384469,1749639039838,-1050.07088912,0.0001999,2]
[365384471,1749639039847,-150.47,0.0001999,2]
[365384473,1749639039857,-150.47,0.0001999,2]
[365384475,1749639039866,-150.47,0.0001999,2]
[365384477,1749639039875,-150.47,0.0001999,2]
[365384479,1749639039885,-150.47,0.0001999,2]
[365384480,1749639039894,-150.47,0.0001999,2]
[365384482,1749639039904,-150.47,0.0001999,2]
[365384484,1749639039913,-150.47,0.0001999,2]
[365384486,1749639039922,-150.47,0.0001999,2]
[365384488,1749639039931,-150.47,0.0001999,2]
[365384489,1749639039941,-150.47,0.0001999,2]
[365384491,1749639039951,-150.47,0.0001999,2]
[365384494,1749639039960,-150.47,0.0001999,2]
[365384496,1749639039970,-150.47,0.0001999,2]
[365384498,1749639039979,-150.47,0.0001999,2]
[365384500,1749639039988,-150.47,0.0001999,2]
[365384502,1749639039998,-150.47,0.0001999,2]
[365384504,1749639040007,-150.47,0.0001999,2]
[365384506,1749639040017,-150.47,0.0001999,2]
[365384508,1749639040026,-150.47,0.0001999,2]
[365384510,1749639040037,-150.47,0.0001999,2]
[365384512,1749639040047,-150.47,0.0001999,2]
[365384514,1749639040057,-150.47,0.0001999,2]
[365384516,1749639040066,-150.47,0.0001999,2]
[365384518,1749639040075,-150.47,0.0001999,2]
[365384520,1749639040085,-150.47,0.0001999,2]
[365384522,1749639040095,-150.47,0.0001999,2]
[365384524,1749639040105,-150.47,0.0001999,2]
[365384526,1749639040114,-150.47,0.0001999,2]
[365384528,1749639040124,-150.47,0.0001999,2]
[365384530,1749639040133,-150.47,0.0001999,2]
[365384532,1749639040142,-150.47,0.0001999,2]
[365384534,1749639040152,-150.47,0.0001999,2]
[365384536,1749639040161,-150.47,0.0001999,2]
[365384554,1749639040360,-150.47,0.0001999,2]
[365384556,1749639040370,-150.47,0.0001999,2]
[365384558,1749639040380,-150.47,0.0001999,2]
[365384560,1749639040389,-150.47,0.0001999,2]
[365384562,1749639040400,-150.47,0.0001999,2]
[365384564,1749639040409,-150.47,0.0001999,2]
[365384566,1749639040419,-150.47,0.0001999,2]
[365384568,1749639040429,-150.47,0.0001999,2]
[365384570,1749639040439,-150.47,0.0001999,2]
[365384572,1749639040448,-150.47,0.0001999,2]
[365384574,1749639040458,-150.47,0.0001999,2]
[365384576,1749639040467,-150.47,0.0001999,2]
[365384578,1749639040476,-150.47,0.0001999,2]
[365384580,1749639040486,-150.47,0.0001999,2]
[365384582,1749639040496,-150.47,0.0001999,2]
[365384584,1749639040506,-150.47,0.0001999,2]
[365384586,1749639040515,-150.47,0.0001999,2]
[365384588,1749639040525,-150.47,0.0001999,2]
[365384590,1749639040534,-150.47,0.0001999,2]
[365384592,1749639040543,-150.47,0.0001999,2]
[365384594,1749639040553,-150.47,0.0001999,2]
[365384596,1749639040562,-150.47,0.0001999,2]
[365384598,1749639040572,-150.47,0.0001999,2]
[365384600,1749639040582,-150.47,0.0001999,2]
[365384602,1749639040591,-150.47,0.0001999,2]
[365384604,1749639040601,-150.47,0.0001999,2]
[365384606,1749639040610,-150.47,0.0001999,2]
[365384608,1749639040620,-150.47,0.0001999,2]
[365384610,1749639040629,-150.47,0.0001999,2]
[365384612,1749639040638,-154.17,0.0001999,2]
[365384613,1749639040648,-1077.8754201,0.00019995,2]
[365384615,1749639040658,-9179.0948496,0.00019995,2]
[365384617,1749639040667,-227.5746513,0.00019995,2]
[365384620,1749639040678,-300.0,0.00019999,2]
[365384621,1749639040690,-300.0,0.00019999,2]
[365384623,1749639040700,-2003.52358345,0.00019999,2]
[365384625,1749639040709,-500.0,0.00019999,2]
[365384627,1749639040718,-790786.57376499,0.0002,3]
[365384629,1749639040728,-18659.03368302,0.0002,3]
[365384631,1749639040738,-2442.366,0.0002,2]
[365384633,1749639040747,-155.0,0.0002,2]
[365384635,1749639040757,-250.0,0.0002,2]
[365384637,1749639040768,-1808.181,0.0002,2]
[365384639,1749639040781,-115431.91558968,0.0002,2]
[365384641,1749639040789,-306560.18450135,0.0002,2]
[365384643,1749639040798,-148423.30775292,0.0002,2]
[365384645,1749639040807,-115354.20866882,0.0002,2]
[365384647,1749639040817,-118993.43665711,0.0002,2]
[365384649,1749639040826,-252602.63339449,0.0002,2]
[365384651,1749639040835,-5670.50538424,0.0002,2]
[365384653,1749639040844,-400.0,0.0002,2]
[365384655,1749639040854,-4529.27,0.0002,9]
[365384657,1749639040863,-432593.89220186,0.0002,2]
[365384659,1749639040872,-140656.88209284,0.0002,2]
[365384661,1749639040881,-125509.98304329,0.0002,2]
[365384663,1749639040890,-3806.98,0.0002,13]
[365384665,1749639040899,-209.4,0.0002,2]
[365384667,1749639040909,-210.0,0.0002,2]
[365384669,1749639040918,-1545.5934465,0.0002,2]
[365384671,1749639040926,-209.4,0.0002,2]
[365384673,1749639040935,-1500.0,0.0002,2]
[365384675,1749639040945,-1500.0,0.0002,2]
[365384677,1749639040954,-1500.0,0.0002,2]
[365384679,1749639040963,-1500.0,0.0002,2]
[365384681,1749639040973,-1500.0,0.0002,2]
[365384683,1749639040982,-1500.0,0.0002,2]
[365384685,1749639040991,-1500.0,0.0002,2]
[365384687,1749639041001,-1500.0,0.0002,2]
[365384689,1749639041009,-1500.0,0.0002,2]
[365384691,1749639041019,-1500.0,0.0002,2]
[365384693,1749639041028,-828.59,0.0002,2]
[365384695,1749639041037,-689786.09932755,0.0002,2]
[365384697,1749639041054,-24463.82650407,0.0002,2]
[365384700,1749639041065,-645.36,0.0002,2]
[365384702,1749639041076,-987.72911154,0.0002,2]
[365384704,1749639041087,-1207402.27001139,0.0002,2]
[365384706,1749639041099,-1075.6,0.0002,2]
[365384708,1749639041110,-421.13683,0.0002,2]
[365384752,1749639041635,-241.02946074,0.000174,2]
[365384754,1749639041646,-250.71053926,0.000174,2]
[365384756,1749639041655,-200.0,0.00017928,2]
[365384758,1749639041665,-160.98377286,0.0001914,2]
[365384760,1749639041674,-4939.63648788,0.0002,2]
[365384762,1749639041685,-15134.27374972,0.0002,2]
[365384764,1749639041700,-583939.60181445,0.0002,2]
[365384767,1749639041713,-2158.47238883,0.0002,2]
[365384769,1749639041723,-327.85285,0.0002,2]
[365384772,1749639041739,-535.569,0.0002,2]
[365384774,1749639041750,-860.48,0.0002,2]
[365384898,1749639042916,-151.0,0.00019178,2]
[365384900,1749639042925,-463.4398146,0.0002,2]
[365384906,1749639042969,-40366.43839177,0.0002,2]
[365384918,1749639043077,-357.05910824,0.0002,2]
[365384930,1749639043183,-2151.2,0.0002,2]
[365384939,1749639043257,-195.64436125,0.0002,2]
[365384941,1749639043269,-5344.0,0.0002,2]
[365384944,1749639043290,-6147.86159183,0.0002,2]
[365384947,1749639043301,-3984.08627409,0.0002,2]
[365384949,1749639043312,-6438.7424503,0.0002,2]
[365385218,1749639046026,-301.9431694,0.000174,2]
[365385230,1749639046135,-200.0668306,0.000174,2]
[365385232,1749639046144,-1557.57908228,0.0002,2]
[365385234,1749639046156,-1552.80000005,0.0002,2]
[365385236,1749639046167,-252.86999999,0.0002,2]
[365385258,1749639046360,-16207.26962018,0.0002,2]
[365385474,1749639326605,1136.53,0.0001601,2]
[365385475,1749639390539,600.0,0.00024649,120]
[365385476,1749639404350,600.0,0.00024649,120]
[365385477,1749639478646,154.19,0.00013699,2]
[365385479,1749639742764,946.5,0.00024656,120]
[365385480,1749639832001,166.42,0.00014342,2]
[365385482,1749639958553,-500.0,0.00016164,2]
[365385483,1749639958575,-151.0,0.00016917,2]
[365385484,1749639958598,-204.0,0.00017043,2]
[365385485,1749639958619,-284.01267497,0.00017198,2]
[365385486,1749639958641,-284.01267496,0.00017243,2]
[365385487,1749639958662,-284.01267496,0.00017288,2]
[365385488,1749639958685,-244.58567511,0.00017298,2]
[365385489,1749639973527,-150.0,0.00017298,2]
[365385490,1749640032133,-429.35928199,0.00016164,2]
[365385491,1749640033305,-107.47479577,0.00016164,2]
[365385492,1749640033328,-152.481,0.00017199,2]
[365385493,1749640033349,-805.41432489,0.00017298,2]
[365385494,1749640033370,-87.6805707,0.00017298,2]
[365385495,1749640036111,-212.3194293,0.00017298,2]
[365385496,1749640036131,-300.0,0.00017298,2]
[365385497,1749640036151,-600.0,0.00017298,4]
[365385498,1749640036172,-303.24,0.00017299,2]
[365385499,1749640036192,-305.97,0.00017299,2]
[365385500,1749640036214,-305.01,0.00017299,2]
[365385501,1749640036234,-300.52,0.00017299,2]
[365385502,1749640036255,-305.61,0.00017299,2]
[365385503,1749640036275,-302.08,0.00017299,2]
[365385504,1749640036296,-305.95,0.00017299,2]
[365385505,1749640036317,-550.0,0.00017299,2]
[365385506,1749640036339,-304.28,0.000173,2]
[365385507,1749640036359,-300.59,0.000173,2]
[365385508,1749640036381,-302.17,0.000173,2]
[365385509,1749640036405,-335.41808621,0.000173,2]
[365385510,1749640105117,300.0,0.00016164,2]
[365385511,1749640146130,-200.0,0.00016164,2]
[365385512,1749640162613,-150.0,0.000172,2]
[365385560,1749640232072,-410.7052123,0.00016164,2]
[365385561,1749640232082,-204.0,0.00017144,2]
[365385562,1749640232092,-7.53016196,0.000172,2]
[365385563,1749640232102,-157.53016196,0.00017243,2]
[365385564,1749640232113,-157.53016196,0.00017285,2]
[365385565,1749640232123,-550.0,0.00017299,2]
[365385566,1749640232133,-300.0,0.00017299,2]
[365385567,1749640232142,-1200.0,0.00017299,2]
[365385568,1749640232154,-162.71191379,0.000173,2]
[365385569,1749640232164,-301.87,0.000173,2]
[365385570,1749640232175,-496.74,0.000173,2]
[365385571,1749640232186,-351.38238804,0.000173,2]
[365385572,1749640232198,-147.98761196,0.000173,2]
[365385573,1749640232208,-206.19697828,0.000173,2]
[365385574,1749640232220,-95.31302172,0.000173,2]
[365385575,1749640232229,-496.9,0.000173,2]
[365385576,1749640232240,-502.2,0.000173,2]
[365385577,1749640232249,-503.26,0.000173,2]
[365385578,1749640232258,-304.14,0.000173,2]
[365385579,1749640232267,-508.29,0.000173,2]
[365385580,1749640232276,-499.32,0.000173,2]
[365385581,1749640232285,-494.85,0.000173,2]
[365385582,1749640232294,-303.0,0.000173,2]
[365385583,1749640232304,-497.29,0.000173,2]
[365385584,1749640232313,-503.16,0.000173,2]
[365385585,1749640232322,-509.22,0.000173,2]
[365385586,1749640232331,-304.21,0.000173,2]
[365385587,1749640232342,-491.81,0.000173,2]
[365385588,1749640232351,-491.81,0.000173,2]
[365385589,1749640232360,-500.01,0.000173,2]
[365385590,1749640232369,-304.27,0.000173,2]
[365385591,1749640232378,-496.16,0.000173,2]
[365385592,1749640232387,-250.0,0.000173,2]
[365385593,1749640232397,-300.0,0.000173,2]
[365385594,1749640232406,-508.45,0.000173,2]
[365385595,1749640232416,-509.96,0.000173,2]
[365385596,1749640232425,-504.52,0.000173,2]
[365385597,1749640232434,-495.01,0.000173,2]
[365385598,1749640232444,-494.2,0.000173,2]
[365385599,1749640232454,-497.94,0.000173,2]
[365385600,1749640232463,-496.97,0.000173,2]
[365385602,1749640232472,-491.11,0.000173,2]
[365385604,1749640232481,-303.12,0.000173,2]
[365385606,1749640232491,-300.0,0.000173,2]
[365385608,1749640232500,-501.3,0.000173,2]
[365385610,1749640232510,-491.44,0.000173,2]
[365385612,1749640232519,-302.25,0.00017301,2]
[365385614,1749640232529,-503.08,0.00017301,2]
[365385616,1749640232539,-509.13,0.00017301,2]
[365385618,1749640232548,-500.54,0.00017302,2]
[365385620,1749640232557,-509.79,0.00017302,2]
[365385622,1749640232567,-302.06,0.00017304,2]
[365385624,1749640232576,-494.56,0.00017311,2]
[365385626,1749640232586,-491.87,0.00017311,2]
[365385628,1749640232594,-373.58,0.0001732,2]
[365385630,1749640232603,-303.71,0.00017321,2]
[365385632,1749640232613,-504.6,0.00017341,2]
[365385634,1749640232625,-502.47,0.00017341,2]
[365385635,1749640232634,-506.47,0.00017364,2]
[365385637,1749640232644,-497.32,0.00017364,2]
[365385639,1749640232654,-500.0,0.00017378,2]
[365385641,1749640232664,-1000.0,0.00017384,2]
[365385644,1749640232674,-151.0,0.00017386,2]
[365385646,1749640232684,-151.0,0.00017386,2]
[365385647,1749640232694,-151.0,0.00017386,2]
[365385649,1749640232703,-151.0,0.00017386,2]
[365385651,1749640232712,-151.0,0.00017386,2]
[365385653,1749640232721,-151.0,0.00017386,2]
[365385655,1749640232731,-151.0,0.00017386,2]
[365385657,1749640232741,-162.98154217,0.00017386,2]
[365385659,1749640232752,-666.0,0.00017386,2]
[365385661,1749640232761,-505.34,0.000174,2]
[365385663,1749640232770,-304.04,0.000174,2]
[365385665,1749640232779,-498.97,0.000174,2]
[365385667,1749640232789,-498.6,0.000174,2]
[365385669,1749640232797,-494.25,0.000174,2]
[365385671,1749640232807,-300.9,0.000174,2]
[365385673,1749640232816,-493.55,0.000174,2]
[365385675,1749640232826,-508.58,0.000174,2]
[365385677,1749640232834,-300.16,0.000174,2]
[365385679,1749640232848,-490.46,0.000174,2]
[365385681,1749640232857,-496.05,0.000174,2]
[365385684,1749640232866,-491.94,0.000174,2]
[365385685,1749640232876,-300.18,0.000174,2]
[365385687,1749640232885,-506.56,0.000174,2]
[365385689,1749640232894,-500.14,0.000174,2]
[365385691,1749640232903,-303.12,0.000174,2]
[365385693,1749640232912,-496.25,0.000174,2]
[365385695,1749640232921,-506.02,0.000174,2]
[365385697,1749640232931,-491.91,0.000174,2]
[365385699,1749640232941,-304.13,0.000174,2]
[365385701,1749640232950,-496.16,0.000174,2]
[365385703,1749640232960,-506.13,0.000174,2]
[365385706,1749640232972,-508.41,0.000174,2]
[365385707,1749640232981,-302.98,0.000174,2]
[365385710,1749640232992,-495.86,0.000174,2]
[365385712,1749640233001,-493.73,0.000174,2]
[365385714,1749640233011,-145.24036872,0.000174,2]
[365385716,1749640233024,-364.48963128,0.000174,2]
[365385718,1749640233034,-301.29,0.000174,2]
[365385720,1749640233046,-248.64864172,0.000174,2]
[365385722,1749640233057,-259.16135828,0.000174,2]
[365385724,1749640233067,-437.67879632,0.000174,2]
[365385726,1749640233078,-64.70120368,0.000174,2]
[365385728,1749640233089,-301.77,0.000174,2]
[365385729,1749640233099,-497.18,0.000174,2]
[365385731,1749640233113,-501.94,0.000174,2]
[365385733,1749640233123,-492.87,0.000174,2]
[365385735,1749640233133,-301.46,0.000174,2]
[365385736,1749640233144,-498.73,0.000174,2]
[365385737,1749640233154,-151.0,0.00017441,2]
[365385738,1749640233165,-500.0,0.00017534,2]
[365385739,1749640233175,-1022.0,0.00017759,2]
[365385740,1749640233184,-175.0,0.00017793,2]
[365385741,1749640233194,-334.0,0.00017881,2]
[365385742,1749640233204,-201.73481468,0.000179,2]
[365385743,1749640233214,-500.0,0.00017927,2]
[365385744,1749640233224,-425.44807724,0.00017927,2]
[365385745,1749640233233,-200.2165803,0.00017927,2]
[365385746,1749640233244,-227.0652858,0.00017927,2]
[365385747,1749640233254,-276.73976446,0.00017927,2]
[365385748,1749640233264,-198.46482728,0.00017927,2]
[365385749,1749640233274,-273.15,0.00017928,2]
[365385750,1749640233284,-200.0,0.00017928,2]
[365385751,1749640233294,-468.45,0.00017928,2]
[365385752,1749640233305,-500.0,0.00017928,2]
[365385753,1749640233315,-1597.2,0.00017928,2]
[365385754,1749640233324,-311.80708258,0.00017928,2]
[365385755,1749640233336,-568.48291742,0.00017928,2]
[365385756,1749640233347,-1616.85,0.00017928,2]
[365385757,1749640233356,-1000.0,0.00017928,2]
[365385758,1749640233367,-1500.0,0.00017928,2]
[365385759,1749640233376,-480.62648002,0.00017928,2]
[365385760,1749640233387,-614.39351998,0.00017928,2]
[365385761,1749640233397,-150.0,0.00017928,7]
[365385762,1749640233407,-250.0,0.00017928,2]
[365385763,1749640233417,-851.66353627,0.00017928,2]
[365385764,1749640233445,-884.83291166,0.00017928,2]
[365385765,1749640233457,-310.07538915,0.00017928,2]
[365385766,1749640233469,-372.51000098,0.00017928,2]
[365385767,1749640233480,-351.58816194,0.00017928,2]
[365385768,1749640233492,-2436.27071601,0.00017928,2]
[365385769,1749640233505,-298.695,0.00017928,2]
[365385770,1749640233518,-598.116046,0.00017928,2]
[365385771,1749640233551,-2325.36823799,0.00017928,2]
[365385772,1749640233560,-222.25,0.00017928,2]
[365385773,1749640233573,-150.0,0.00017928,2]
[365385774,1749640233584,-13070.22276666,0.00017928,2]
[365385775,1749640233596,-10829.77723334,0.00017928,2]
[365385776,1749640233606,-1423.0,0.0001797,2]
[365385777,1749640233616,-154.02,0.00018,2]
[365385778,1749640233626,-247.15452796,0.00018,2]
[365385779,1749640233636,-308.0,0.00018056,2]
[365385780,1749640233646,-1481.0,0.00018058,2]
[365385781,1749640233655,-204.0,0.00018272,3]
[365385782,1749640233665,-1136.53,0.00018274,2]
[365385783,1749640233675,-385.0,0.00018406,2]
[365385784,1749640233684,-168.0,0.00018409,2]
[365385785,1749640233695,-168.0,0.00018428,2]
[365385786,1749640233705,-165.4,0.00018465,2]
[365385787,1749640233714,-201.73481468,0.00018536,2]
[365385788,1749640233725,-150.01,0.00018565,2]
[365385789,1749640233735,-152.0,0.00018616,3]
[365385790,1749640233745,-500.0,0.0001863,2]
[365385791,1749640233756,-324.40475698,0.00018691,2]
[365385792,1749640233767,-420.0,0.00018887,2]
[365385793,1749640233777,-420.0,0.00018889,2]
[365385794,1749640233787,-300.0,0.0001892,2]
[365385795,1749640233797,-1680.0,0.00018982,2]
[365385796,1749640233807,-151.0,0.00018999,2]
[365385797,1749640233818,-207.4,0.00018999,2]
[365385798,1749640233827,-2070.0,0.00019,2]
[365385799,1749640233837,-600.0,0.00019028,4]
[365385800,1749640233847,-250.0,0.00019028,2]
[365385801,1749640233858,-300.0,0.00019028,2]
[365385802,1749640233867,-250.0,0.0001903,2]
[365385803,1749640233877,-300.0,0.0001903,2]
[365385804,1749640233887,-1230.65545047,0.00019078,2]
[365385805,1749640233897,-591.93993255,0.00019078,2]
[365385806,1749640233906,-500.0,0.00019078,2]
[365385807,1749640233915,-1000.0,0.00019078,2]
[365385808,1749640233925,-222.5277,0.00019078,2]
[365385809,1749640233935,-629.1437,0.00019078,2]
[365385810,1749640233945,-791.3666,0.00019078,2]
[365385811,1749640233955,-1421.82,0.00019168,2]
[365385812,1749640233965,-1421.82,0.00019168,2]
[365385813,1749640233974,-4148.45,0.00019168,2]
[365385814,1749640233984,-1230.65545044,0.00019169,2]
[365385815,1749640233994,-201.73481468,0.00019173,2]
[365385816,1749640234003,-150.0,0.00019178,2]
[365385817,1749640234013,-151.0,0.00019178,2]
[365385818,1749640234022,-204.68,0.00019178,2]
[365385819,1749640234031,-154.02,0.00019178,2]
[365385820,1749640234041,-1230.65545044,0.00019261,2]
[365385821,1749640234050,-484.0,0.000193,3]
[365385822,1749640234060,-1230.65545044,0.00019352,2]
[365385823,1749640234070,-12500.0,0.00019397,2]
[365385824,1749640234080,-204.0,0.000194,5]
[365385825,1749640234089,-1230.65545044,0.00019443,2]
[365385826,1749640234099,-591.93993254,0.00019489,2]
[365385827,1749640234112,-1230.65545044,0.00019535,2]
[365385828,1749640234122,-641.57716035,0.00019554,2]
[365385829,1749640234131,-641.57716035,0.00019597,2]
[365385830,1749640234141,-5562.0,0.000196,5]
[365385831,1749640234151,-1230.65545044,0.00019626,2]
[365385832,1749640234160,-641.57716035,0.0001964,2]
[365385833,1749640234170,-641.57716035,0.00019684,2]
[365385834,1749640234179,-1421.82,0.0001969,2]
[365385835,1749640234190,-11579.76798949,0.000197,2]
[365385836,1749640234199,-551.23580943,0.000197,2]
[365385837,1749640234209,-1230.65545044,0.00019717,2]
[365385838,1749640234218,-263.347,0.00019719,2]
[365385839,1749640234227,-500.0,0.00019726,2]
[365385840,1749640234238,-156.587,0.00019726,2]
[365385841,1749640234248,-641.57716035,0.00019727,2]
[365385842,1749640234258,-551.23580943,0.00019729,2]
[365385843,1749640234268,-853.0,0.0001973,2]
[365385844,1749640234277,-155.0,0.0001973,2]
[365385845,1749640234287,-2442.366,0.0001973,2]
[365385846,1749640234296,-1808.181,0.0001973,2]
[365385847,1749640234306,-551.23580943,0.00019757,2]
[365385848,1749640234315,-641.57716035,0.0001977,2]
[365385849,1749640234324,-551.23580943,0.00019786,2]
[365385850,1749640234334,-24340.05,0.000198,2]
[365385851,1749640234344,-296.0,0.00019801,2]
[365385852,1749640234513,-1421.82,0.00019804,2]
[365385853,1749640234534,-1230.65545044,0.00019809,2]
[365385854,1749640234544,-201.73481468,0.00019809,2]
[365385855,1749640234554,-647.11707419,0.0001981,2]
[365385856,1749640234563,-641.57716035,0.00019813,2]
[365385857,1749640234573,-551.23580943,0.00019814,2]
[365385858,1749640234582,-5800.0,0.00019831,2]
[365385859,1749640234592,-5800.0,0.00019839,2]
[365385860,1749640234601,-500.0,0.0001984,2]
[365385861,1749640234611,-551.23580943,0.00019843,2]
[365385862,1749640234621,-1421.82,0.00019846,2]
[365385863,1749640234631,-5800.0,0.00019848,2]
[365385864,1749640234641,-5800.0,0.00019856,2]
[365385865,1749640234651,-641.57716035,0.00019857,2]
[365385866,1749640234660,-5800.0,0.00019865,2]
[365385867,1749640234669,-551.23580943,0.00019871,2]
[365385868,1749640234679,-500.0,0.00019873,2]
[365385869,1749640234689,-500.0,0.00019873,2]
[365385870,1749640234699,-502.25713157,0.00019873,2]
[365385871,1749640234709,-500.0,0.00019873,2]
[365385872,1749640234719,-500.0,0.00019873,2]
[365385873,1749640234728,-4148.45,0.0001989,2]